fUST/lending_fUST_20250131
["ID","MTS","AMOUNT","RATE_DAILY","PERIOD"]
[351007186,1738282269875,-154.0,0.00021812,2]
[351007187,1738282269885,-180.0,0.00021812,2]
[351007188,1738282269894,-154.0,0.00021812,2]
[351007189,1738282269904,-295.22,0.00021812,2]
[351007190,1738282269913,-154.0,0.00021812,2]
[351007191,1738282269922,-154.0,0.00021812,2]
[351007192,1738282269932,-154.0,0.00021812,2]
[351007193,1738282269942,-154.0,0.00021812,2]
[351007194,1738282269951,-154.0,0.00021812,2]
[351007195,1738282269960,-247.76,0.00021812,2]
[351007196,1738282269970,-153.6906943,0.00021836,2]
[351007197,1738282269979,-3098.4465688,0.00021842,2]
[351007198,1738282269988,-790.672078,0.00021853,2]
[351007199,1738282269997,-2305.69330415,0.00021866,3]
[351007200,1738282270007,-600.0,0.00021917,2]
[351007201,1738282270016,-600.0,0.00021917,2]
[351007202,1738282270025,-600.0,0.00021917,2]
[351007203,1738282270035,-600.0,0.00021917,2]
[351007204,1738282270044,-600.0,0.00021917,2]
[351007205,1738282270054,-600.0,0.00021917,2]
[351007206,1738282270063,-600.0,0.00021917,2]
[351007207,1738282270073,-600.0,0.00021917,2]
[351007208,1738282270082,-600.0,0.00021917,2]
[351007209,1738282270091,-600.0,0.00021917,2]
[351007210,1738282270104,-600.0,0.00021917,2]
[351007211,1738282270113,-600.0,0.00021917,2]
[351007212,1738282270122,-600.0,0.00021917,2]
[351007213,1738282270131,-600.0,0.00021917,2]
[351007214,1738282270141,-600.0,0.00021917,2]
[351007215,1738282270150,-600.0,0.00021917,2]
[351007216,1738282270160,-411.65455381,0.00021917,2]
[351007217,1738282270169,-503.05666677,0.00021917,2]
[351007218,1738282270179,-500.0,0.00021917,2]
[351007219,1738282270188,-500.0,0.00021917,2]
[351007220,1738282270198,-500.0,0.00021917,7]
[351007221,1738282270208,-500.0,0.00021917,7]
[351007222,1738282270219,-500.0,0.00021917,7]
[351007223,1738282270287,-500.0,0.00021917,7]
[351007224,1738282270297,-500.0,0.00021917,7]
[351007225,1738282270309,-500.0,0.00021917,7]
[351007226,1738282270319,-500.0,0.00021917,7]
[351007227,1738282270328,-500.0,0.00021917,7]
[351007228,1738282270338,-500.0,0.00021917,7]
[351007229,1738282270347,-500.0,0.00021917,7]
[351007230,1738282270360,-500.0,0.00021917,7]
[351007231,1738282270370,-500.0,0.00021917,7]
[351007232,1738282270379,-500.0,0.00021917,7]
[351007233,1738282270388,-528.5,0.00021917,7]
[351007234,1738282270398,-1000.0,0.00021917,2]
[351007236,1738282270408,-1000.0,0.00021917,2]
[351007238,1738282270417,-1000.0,0.00021917,2]
[351007240,1738282270427,-1000.0,0.00021917,2]
[351007242,1738282270436,-1000.0,0.00021917,2]
[351007244,1738282270446,-1000.0,0.00021917,2]
[351007246,1738282270455,-1000.0,0.00021917,2]
[351007248,1738282270465,-1000.0,0.00021917,2]
[351007249,1738282270474,-1000.0,0.00021917,2]
[351007251,1738282270484,-1000.0,0.00021917,2]
[351007253,1738282270495,-1000.0,0.00021917,2]
[351007255,1738282270504,-1000.0,0.00021917,2]
[351007257,1738282270513,-1000.0,0.00021917,2]
[351007259,1738282270523,-1000.0,0.00021917,2]
[351007260,1738282270532,-1000.0,0.00021917,2]
[351007262,1738282270541,-1000.0,0.00021917,2]
[351007264,1738282270551,-1000.0,0.00021917,2]
[351007266,1738282270561,-655.71736865,0.00021917,2]
[351007268,1738282270570,-500.0,0.00021917,15]
[351007270,1738282270580,-499.0,0.00021917,6]
[351007272,1738282270590,-252.13320158,0.00021918,2]
[351007274,1738282270602,-807.0,0.00021918,2]
[351007276,1738282270612,-1300.813475,0.0002192,5]
[351007278,1738282270621,-1305.435,0.0002192,2]
[351007280,1738282270630,-1305.435,0.0002192,2]
[351007281,1738282270639,-1305.435,0.0002192,2]
[351007282,1738282270648,-1305.435,0.0002192,2]
[351007283,1738282270657,-1305.435,0.0002192,2]
[351007284,1738282270667,-1305.435,0.0002192,2]
[351007285,1738282270676,-1305.435,0.0002192,2]
[351007286,1738282270687,-1305.435,0.0002192,2]
[351007287,1738282270698,-1305.435,0.0002192,2]
[351007288,1738282270707,-1305.435,0.0002192,2]
[351007289,1738282270716,-1305.435,0.0002192,2]
[351007290,1738282270726,-1305.435,0.0002192,2]
[351007291,1738282270736,-1305.435,0.0002192,2]
[351007292,1738282270745,-1305.435,0.0002192,2]
[351007293,1738282270755,-1305.435,0.0002192,2]
[351007294,1738282270776,-1305.435,0.0002192,2]
[351007295,1738282270793,-1305.435,0.0002192,2]
[351007296,1738282270810,-1305.435,0.0002192,2]
[351007297,1738282270828,-1305.435,0.0002192,2]
[351007298,1738282270847,-1305.43,0.0002192,2]
[351007299,1738282270867,-3046.015,0.0002192,2]
[351007300,1738282270886,-3046.015,0.0002192,2]
[351007301,1738282270900,-3046.015,0.0002192,2]
[351007302,1738282270915,-3046.015,0.0002192,2]
[351007303,1738282270932,-3046.015,0.0002192,2]
[351007305,1738282270952,-3046.015,0.0002192,2]
[351007307,1738282270968,-3046.015,0.0002192,2]
[351007310,1738282270981,-3046.015,0.0002192,2]
[351007312,1738282271000,-3046.015,0.0002192,2]
[351007315,1738282271014,-3046.015,0.0002192,2]
[351007317,1738282271029,-3046.015,0.0002192,2]
[351007320,1738282271043,-3046.015,0.0002192,2]
[351007322,1738282271057,-3046.015,0.0002192,2]
[351007325,1738282271071,-3046.015,0.0002192,2]
[351007327,1738282271086,-3046.015,0.0002192,2]
[351007329,1738282271103,-3046.015,0.0002192,2]
[351007332,1738282271119,-3046.015,0.0002192,2]
[351007334,1738282271133,-3046.015,0.0002192,2]
[351007337,1738282271148,-3046.015,0.0002192,2]
[351007339,1738282271163,-3046.01,0.0002192,2]
[351007341,1738282271177,-263.62,0.0002192,2]
[351007343,1738282271191,-153.78361713,0.0002192,2]
[351007346,1738282271205,-153.78361713,0.0002192,2]
[351007348,1738282271220,-153.78361713,0.0002192,2]
[351007350,1738282271234,-153.78,0.0002192,2]
[351007353,1738282271248,-154.0,0.00021928,2]
[351007355,1738282271262,-154.0,0.00021928,2]
[351007357,1738282271275,-154.0,0.00021928,2]
[351007360,1738282271289,-154.0,0.00021928,2]
[351007362,1738282271303,-154.0,0.00021928,2]
[351007364,1738282271317,-154.0,0.00021928,2]
[351007367,1738282271331,-154.0,0.00021928,2]
[351007369,1738282271345,-154.0,0.00021928,2]
[351007372,1738282271363,-154.0,0.00021928,2]
[351007374,1738282271377,-154.0,0.00021928,2]
[351007376,1738282271390,-154.0,0.00021928,2]
[351007379,1738282271403,-154.0,0.00021928,2]
[351007381,1738282271417,-154.0,0.00021928,2]
[351007384,1738282271432,-154.0,0.00021928,2]
[351007386,1738282271446,-154.0,0.00021928,2]
[351007388,1738282271459,-154.0,0.00021928,2]
[351007391,1738282271472,-154.0,0.00021928,2]
[351007393,1738282271486,-237.0,0.00021928,2]
[351007396,1738282271500,-1000.0,0.0002194,5]
[351007406,1738282271596,-790.672078,0.00021953,4]
[351007408,1738282271609,-1000.0,0.0002196,5]
[351007410,1738282271618,-14768.32220009,0.0002198,30]
[351007412,1738282271627,-1000.0,0.0002198,5]
[351007414,1738282271637,-908314.61858017,0.00022,2]
[351007416,1738282271646,-28093.77,0.00022,5]
[351007418,1738282271655,-249.130001,0.00022,7]
[351007420,1738282271665,-259623.71781969,0.00022,30]
[351007422,1738282271675,-848.21633691,0.00022,2]
[351007424,1738282271685,-1500.0,0.00022,2]
[351007426,1738282271697,-1500.0,0.00022,2]
[351007428,1738282271706,-1500.0,0.00022,2]
[351007430,1738282271715,-1500.0,0.00022,2]
[351007432,1738282271724,-1667.34,0.00022,2]
[351007434,1738282271733,-1500.0,0.00022,2]
[351007436,1738282271742,-1500.0,0.00022,2]
[351007438,1738282271751,-1500.0,0.00022,2]
[351007440,1738282271760,-1500.0,0.00022,2]
[351007441,1738282271771,-170.0,0.00022,14]
[351007443,1738282271780,-170.0,0.00022,14]
[351007445,1738282271789,-1711.05792827,0.00022,7]
[351007447,1738282271798,-1000.0,0.00022,22]
[351007449,1738282271808,-210.38233177,0.00022,30]
[351007451,1738282271817,-1004.07220467,0.00022,10]
[351007453,1738282271826,-23610.45531293,0.00022,15]
[351007455,1738282271835,-1792.51992709,0.00022,2]
[351007457,1738282271844,-8081.05370522,0.00022,10]
[351007459,1738282271855,-140000.0,0.00022,30]
[351007461,1738282271864,-189.0,0.00022,2]
[351007463,1738282271874,-1000.0,0.00022,5]
[351007465,1738282271883,-555.93,0.00022,2]
[351007467,1738282271893,-300.0,0.00022,9]
[351007469,1738282271902,-150.132568,0.00022,2]
[351007471,1738282271912,-223.99,0.00022,3]
[351007473,1738282271921,-207.78,0.00022,3]
[351007474,1738282271931,-160.0,0.00022,7]
[351007476,1738282271940,-2305.69330415,0.00022038,3]
[351007478,1738282271950,-22588.85893931,0.0002205,2]
[351007480,1738282271959,-790.672078,0.00022053,4]
[351007482,1738282271968,-1152.0,0.00022087,2]
[351007484,1738282271978,-4522.9,0.000221,30]
[351007486,1738282271987,-154.51,0.000221,31]
[351007488,1738282271996,-154.51,0.000221,31]
[351007490,1738282272008,-154.51,0.000221,31]
[351007492,1738282272017,-154.51,0.000221,31]
[351007494,1738282272027,-154.51,0.000221,31]
[351007496,1738282272036,-154.51,0.000221,31]
[351007498,1738282272045,-154.51,0.000221,31]
[351007500,1738282272055,-154.51,0.000221,31]
[351007502,1738282272064,-154.51,0.000221,31]
[351007504,1738282272073,-154.51,0.000221,31]
[351007506,1738282272083,-154.51,0.000221,31]
[351007507,1738282272092,-1200.0,0.00022132,2]
[351007509,1738282272102,-160.0,0.00022138,7]
[351007511,1738282272111,-168.58587789,0.00022138,5]
[351007513,1738282272121,-790.672078,0.00022153,5]
[351007515,1738282272131,-807.0,0.00022192,2]
[351007517,1738282272140,-2000.0,0.000222,2]
[351007519,1738282272150,-8120.97749,0.000222,2]
[351007521,1738282272159,-2000.0,0.000222,2]
[351007523,1738282272169,-2305.69330415,0.0002221,3]
[351007525,1738282272178,-790.672078,0.00022253,2]
[351007527,1738282272187,-506.95375784,0.0002227,7]
[351007529,1738282272197,-151.0,0.00022275,15]
[351007531,1738282272206,-157712.90193828,0.000223,7]
[351007533,1738282272215,-54748.26048719,0.000223,3]
[351007535,1738282272224,-3686.61562236,0.000223,30]
[351007536,1738282272233,-99798.19415634,0.000223,7]
[351007538,1738282272243,-3098.4465688,0.00022307,2]
[351007540,1738282272252,-1376.59666431,0.00022307,2]
[351007542,1738282272262,-1500.0,0.00022328,2]
[351007544,1738282272272,-9558.0,0.00022329,120]
[351007546,1738282272281,-500.0,0.0002233,2]
[351007548,1738282272291,-500.0,0.00022335,2]
[351007550,1738282272300,-500.0,0.00022335,2]
[351007552,1738282272310,-500.0,0.00022335,2]
[351007554,1738282272319,-500.0,0.00022335,2]
[351007556,1738282272328,-500.0,0.00022335,2]
[351007558,1738282272338,-500.0,0.00022335,2]
[351007560,1738282272347,-500.0,0.00022335,2]
[351007562,1738282272358,-500.0,0.00022335,2]
[351007564,1738282272367,-500.0,0.00022335,2]
[351007566,1738282272376,-500.0,0.00022335,2]
[351007567,1738282272385,-500.0,0.00022335,2]
[351007569,1738282272394,-500.0,0.00022335,2]
[351007571,1738282272403,-500.0,0.00022335,2]
[351007573,1738282272412,-500.0,0.00022335,2]
[351007575,1738282272422,-500.0,0.00022335,2]
[351007577,1738282272431,-500.0,0.00022335,2]
[351007579,1738282272440,-500.0,0.00022335,2]
[351007581,1738282272450,-500.0,0.00022335,2]
[351007583,1738282272459,-500.0,0.00022335,2]
[351007585,1738282272469,-500.0,0.00022335,2]
[351007587,1738282272479,-592.70607277,0.00022335,2]
[351007589,1738282272488,-500.0,0.00022335,2]
[351007591,1738282272498,-500.0,0.00022335,2]
[351007593,1738282272508,-500.0,0.00022335,2]
[351007595,1738282272518,-500.0,0.00022335,2]
[351007597,1738282272527,-500.0,0.00022335,2]
[351007599,1738282272536,-500.0,0.00022335,2]
[351007601,1738282272547,-500.0,0.00022335,2]
[351007603,1738282272555,-500.0,0.00022335,2]
[351007611,1738282272623,-500.0,0.00022335,2]
[351007613,1738282272632,-500.0,0.00022335,2]
[351007615,1738282272641,-500.0,0.00022335,2]
[351007617,1738282272651,-500.0,0.00022335,2]
[351007619,1738282272660,-500.0,0.00022335,2]
[351007621,1738282272669,-500.0,0.00022335,2]
[351007623,1738282272679,-500.0,0.00022335,2]
[351007624,1738282272689,-500.0,0.00022335,2]
[351007626,1738282272701,-500.0,0.00022335,2]
[351007628,1738282272711,-500.0,0.00022335,2]
[351007630,1738282272720,-500.0,0.00022335,2]
[351007632,1738282272731,-500.0,0.00022335,2]
[351007635,1738282272741,-500.0,0.00022335,2]
[351007637,1738282272751,-500.0,0.00022335,2]
[351007638,1738282272760,-500.0,0.00022335,2]
[351007640,1738282272769,-500.0,0.00022335,2]
[351007642,1738282272780,-595.13056372,0.00022335,2]
[351007644,1738282272790,-2477.0,0.00022335,120]
[351007647,1738282272800,-10000.0,0.00022335,120]
[351007648,1738282272809,-790.672078,0.00022353,7]
[351007650,1738282272819,-2305.69330415,0.00022383,3]
[351007652,1738282272829,-153.0,0.00022384,2]
[351007654,1738282272838,-705.2691684,0.00022384,2]
[351007656,1738282272848,-215.4605405,0.00022384,2]
[351007658,1738282272860,-154.3747797,0.00022384,2]
[351007660,1738282272871,-154.3747797,0.00022384,2]
[351007662,1738282272880,-215.5255313,0.00022384,2]
[351007664,1738282272890,-154.3747797,0.00022384,2]
[351007666,1738282272899,-154.3747797,0.00022384,2]
[351007668,1738282272910,-215.5255313,0.00022384,2]
[351007670,1738282272919,-215.5255313,0.00022384,2]
[351007672,1738282272928,-215.5255313,0.00022384,2]
[351007674,1738282272939,-215.5255313,0.00022384,2]
[351007676,1738282272948,-153.99679,0.00022384,2]
[351007678,1738282272958,-354.1278896,0.00022384,2]
[351007680,1738282272967,-310430.77236472,0.00022407,61]
[351007691,1738282273070,-5150.0,0.00022407,61]
[351007714,1738282273295,-500.0,0.00016438,2]
[351007716,1738282273304,-500.0,0.00016438,2]
[351007718,1738282273314,-500.0,0.00016575,2]
[351007720,1738282273324,-151.993337,0.00016575,2]
[351007722,1738282273333,-151.0,0.00016575,2]
[351007724,1738282273343,-500.0,0.00016575,2]
[351007726,1738282273354,-500.0,0.00016712,2]
[351007728,1738282273364,-500.0,0.00016849,2]
[351007730,1738282273373,-500.0,0.00016986,2]
[351007732,1738282273384,-500.0,0.00016986,2]
[351007734,1738282273394,-355.28982441,0.00017123,2]
[351007736,1738282273403,-500.0,0.00017123,2]
[351007738,1738282273412,-500.0,0.0001726,2]
[351007740,1738282273422,-500.0,0.00017397,2]
[351007742,1738282273431,-317.0346464,0.00017425,2]
[351007744,1738282273441,-480.58927066,0.00017534,2]
[351007746,1738282273451,-354.3389743,0.00021425,2]
[351007748,1738282273460,-3509.74384843,0.00022407,61]
[351007750,1738282273472,-7347.66619809,0.00022407,61]
[351007752,1738282273484,-1070226.47321133,0.00022407,61]
[351007755,1738282273496,-9940.2329048,0.00022407,61]
[351007757,1738282273507,-15531.6873376,0.00022407,61]
[351008062,1738282336048,160.789299,0.00013973,2]
[351008063,1738282527724,1093.88103357,0.00020453,15]
[351008077,1738283324736,8647.62895331,0.00013,2]
[351008088,1738283414606,276.6047141,0.00015066,2]
[351008129,1738283432349,-291.706,0.00015185,2]
[351008131,1738283432361,-168.78144523,0.00015455,2]
[351008137,1738283432409,-99.59115777,0.00015455,2]
[351008139,1738283432419,-300.0,0.00015499,2]
[351008140,1738283432428,-15027.27086846,0.000155,2]
[351008143,1738283432440,-360.41287851,0.000155,2]
[351008145,1738283432452,-5154.8107125,0.000155,2]
[351008147,1738283432464,-46295.75424386,0.000155,2]
[351008149,1738283432476,-2731.57530867,0.000155,2]
[351008155,1738283432521,-19656.37831994,0.000155,2]
[351008157,1738283432530,-16675.81089911,0.00015525,2]
[351008641,1738283438178,-1992.07130781,0.00015525,2]
[351008654,1738283438298,-301.73790108,0.00015525,2]
[351008656,1738283438310,-5930.379892,0.00015525,2]
[351008658,1738283438320,-327.22204864,0.00016437,2]
[351008660,1738283438330,-500.0,0.00016437,2]
[351008662,1738283438339,-212.62523688,0.00016437,2]
[351008664,1738283438349,-234.53155361,0.00016437,2]
[351008666,1738283438358,-500.0,0.00016437,2]
[351008667,1738283438370,-500.0,0.00016437,2]
[351008669,1738283438381,-500.0,0.00016437,2]
[351008671,1738283438390,-500.0,0.00016437,2]
[351008673,1738283438400,-487.35162832,0.00016437,2]
[351008676,1738283438410,-343.59291712,0.00016438,2]
[351008677,1738283438419,-501.55696237,0.00016438,2]
[351008679,1738283438429,-500.0,0.00016438,2]
[351008681,1738283438438,-500.0,0.00016438,2]
[351008683,1738283438448,-500.0,0.00016438,2]
[351008685,1738283438457,-500.0,0.00016438,2]
[351008687,1738283438467,-500.0,0.00016438,2]
[351008689,1738283438476,-500.0,0.00016438,2]
[351008691,1738283438486,-500.0,0.00016438,2]
[351008693,1738283438496,-500.0,0.00016438,2]
[351008695,1738283438505,-500.0,0.00016438,2]
[351008697,1738283438515,-500.77416784,0.00016438,2]
[351008699,1738283438524,-298.37255857,0.00016438,2]
[351008702,1738283438533,-508.54004725,0.00016438,2]
[351008704,1738283438547,-500.0,0.00016438,2]
[351008706,1738283438556,-500.0,0.00016438,2]
[351008707,1738283438565,-500.0,0.00016438,2]
[351008709,1738283438575,-500.0,0.00016438,2]
[351008711,1738283438584,-645.09835103,0.00016438,2]
[351008713,1738283438593,-500.0,0.00016438,2]
[351008715,1738283438602,-500.0,0.00016438,2]
[351008717,1738283438613,-500.0,0.00016438,2]
[351008719,1738283438622,-500.0,0.00016438,2]
[351008721,1738283438632,-500.0,0.00016438,2]
[351008723,1738283438641,-322.34702438,0.00016438,2]
[351008725,1738283438651,-500.0,0.00016438,2]
[351008727,1738283438660,-500.0,0.00016438,2]
[351008729,1738283438669,-500.0,0.00016438,2]
[351008731,1738283438678,-500.0,0.00016438,2]
[351008733,1738283438688,-500.0,0.00016438,2]
[351008735,1738283438697,-500.0,0.00016438,2]
[351008737,1738283438706,-500.0,0.00016438,2]
[351008739,1738283438716,-500.0,0.00016438,2]
[351008741,1738283438727,-500.0,0.00016438,2]
[351008743,1738283438736,-500.0,0.00016438,2]
[351008744,1738283438745,-500.0,0.00016438,2]
[351008746,1738283438755,-502.3754234,0.00016438,2]
[351008748,1738283438765,-500.0,0.00016438,2]
[351008750,1738283438775,-500.0,0.00016438,2]
[351008752,1738283438784,-500.0,0.00016438,2]
[351008754,1738283438793,-500.0,0.00016438,2]
[351008756,1738283438803,-500.0,0.00016438,2]
[351008758,1738283438814,-500.0,0.00016438,2]
[351008760,1738283438823,-500.0,0.00016438,2]
[351008762,1738283438833,-500.0,0.00016438,2]
[351008764,1738283438842,-500.0,0.00016438,2]
[351008766,1738283438852,-500.0,0.00016438,2]
[351008768,1738283438863,-500.0,0.00016438,2]
[351008770,1738283438872,-500.0,0.00016438,2]
[351008772,1738283438882,-500.0,0.00016438,2]
[351008774,1738283438890,-500.0,0.00016438,2]
[351008776,1738283438900,-500.0,0.00016438,2]
[351008777,1738283438909,-500.0,0.00016438,2]
[351008779,1738283438919,-500.0,0.00016438,2]
[351008781,1738283438928,-500.0,0.00016438,2]
[351008783,1738283438938,-366.66097143,0.00016438,2]
[351008785,1738283438947,-514.06068051,0.00016438,2]
[351008787,1738283438956,-500.0,0.00016438,2]
[351008789,1738283438966,-500.0,0.00016438,2]
[351008791,1738283438975,-500.0,0.00016438,2]
[351008793,1738283438984,-342.940949,0.00016438,2]
[351008795,1738283438994,-500.0,0.00016438,2]
[351008797,1738283439003,-500.0,0.00016438,2]
[351008799,1738283439012,-500.0,0.00016438,2]
[351008801,1738283439022,-500.0,0.00016438,2]
[351008803,1738283439031,-500.0,0.00016438,2]
[351008805,1738283439041,-500.0,0.00016438,2]
[351008806,1738283439050,-500.0,0.00016438,2]
[351008808,1738283439059,-500.0,0.00016438,2]
[351008810,1738283439069,-506.61802956,0.00016438,2]
[351008812,1738283439078,-500.0,0.00016438,2]
[351008814,1738283439087,-500.0,0.00016438,2]
[351008816,1738283439096,-500.0,0.00016438,2]
[351008818,1738283439105,-500.0,0.00016438,2]
[351008820,1738283439118,-500.0,0.00016438,2]
[351008822,1738283439128,-536.76456273,0.00016438,2]
[351008824,1738283439137,-416.06495321,0.00016438,2]
[351008826,1738283439147,-500.0,0.00016438,2]
[351008828,1738283439156,-500.0,0.00016438,2]
[351008830,1738283439165,-352.66670369,0.00016438,2]
[351008832,1738283439175,-649.67893003,0.00016438,2]
[351008834,1738283439184,-500.0,0.00016438,2]
[351008836,1738283439193,-500.0,0.00016438,2]
[351008838,1738283439202,-500.0,0.00016438,2]
[351008839,1738283439212,-500.0,0.00016438,2]
[351008841,1738283439224,-500.0,0.00016438,2]
[351008843,1738283439233,-500.0,0.00016438,2]
[351008845,1738283439243,-500.0,0.00016438,2]
[351008847,1738283439252,-500.0,0.00016438,2]
[351008849,1738283439262,-500.0,0.00016438,2]
[351008851,1738283439271,-500.0,0.00016438,2]
[351008853,1738283439280,-500.0,0.00016438,2]
[351008855,1738283439290,-500.0,0.00016438,2]
[351008857,1738283439299,-503.88895537,0.00016438,2]
[351008858,1738283439309,-500.0,0.00016438,2]
[351008860,1738283439318,-500.0,0.00016438,2]
[351008862,1738283439328,-500.0,0.00016438,2]
[351008864,1738283439337,-500.0,0.00016438,2]
[351008866,1738283439346,-500.0,0.00016438,2]
[351008868,1738283439356,-621.91647847,0.00016438,2]
[351008870,1738283439368,-500.0,0.00016438,2]
[351008872,1738283439378,-500.0,0.00016438,2]
[351008874,1738283439387,-500.0,0.00016438,2]
[351008876,1738283439397,-593.48616833,0.00016438,2]
[351008878,1738283439406,-500.0,0.00016438,2]
[351008880,1738283439415,-410.06648433,0.00016438,2]
[351008882,1738283439424,-500.0,0.00016438,2]
[351008896,1738283439433,-500.0,0.00016438,2]
[351008902,1738283439612,-500.0,0.00016438,2]
[351008904,1738283439622,-500.0,0.00016438,2]
[351008905,1738283439631,-500.0,0.00016438,2]
[351008907,1738283439641,-500.0,0.00016438,2]
[351008909,1738283439650,-500.0,0.00016438,2]
[351008911,1738283439660,-500.0,0.00016438,2]
[351008913,1738283439669,-500.0,0.00016438,2]
[351008915,1738283439679,-500.0,0.00016438,2]
[351008917,1738283439688,-500.0,0.00016438,2]
[351008919,1738283439697,-500.0,0.00016438,2]
[351008921,1738283439706,-500.0,0.00016438,2]
[351008923,1738283439715,-500.0,0.00016438,2]
[351008925,1738283439724,-500.0,0.00016438,2]
[351008927,1738283439734,-500.0,0.00016438,2]
[351008929,1738283439743,-500.0,0.00016438,2]
[351008931,1738283439752,-500.0,0.00016438,2]
[351008932,1738283439761,-550.35107339,0.00016438,2]
[351008934,1738283439769,-500.0,0.00016438,2]
[351008935,1738283439778,-500.0,0.00016438,2]
[351008937,1738283439787,-500.0,0.00016438,2]
[351008939,1738283439796,-500.0,0.00016438,2]
[351008941,1738283439806,-500.0,0.00016438,2]
[351008943,1738283439815,-500.0,0.00016438,2]
[351008945,1738283439825,-500.0,0.00016438,2]
[351008948,1738283439844,-500.0,0.00016438,2]
[351008950,1738283439854,-500.0,0.00016438,2]
[351008951,1738283439864,-500.0,0.00016438,2]
[351008954,1738283439874,-500.0,0.00016438,2]
[351008957,1738283439884,-500.0,0.00016438,2]
[351008960,1738283439893,-500.0,0.00016438,2]
[351008962,1738283439903,-500.0,0.00016438,2]
[351008965,1738283439913,-500.0,0.00016438,2]
[351008968,1738283439922,-500.0,0.00016438,2]
[351008971,1738283439932,-500.0,0.00016438,2]
[351008974,1738283439942,-500.0,0.00016438,2]
[351008977,1738283439952,-500.0,0.00016438,2]
[351008980,1738283439961,-500.0,0.00016438,2]
[351008982,1738283439971,-500.0,0.00016438,2]
[351008984,1738283439981,-500.0,0.00016438,2]
[351008986,1738283439990,-500.0,0.00016438,2]
[351008988,1738283440000,-500.0,0.00016438,2]
[351008990,1738283440009,-500.0,0.00016438,2]
[351008992,1738283440019,-500.0,0.00016438,2]
[351008994,1738283440029,-500.0,0.00016438,2]
[351008995,1738283440038,-500.0,0.00016438,2]
[351008997,1738283440048,-500.0,0.00016438,2]
[351008999,1738283440057,-500.0,0.00016438,2]
[351009001,1738283440067,-500.0,0.00016438,2]
[351009003,1738283440076,-247.8751085,0.00016438,2]
[351009005,1738283440086,-500.0,0.00016438,2]
[351009007,1738283440096,-500.0,0.00016438,2]
[351009009,1738283440106,-500.0,0.00016438,2]
[351009011,1738283440116,-495.47648648,0.00016438,2]
[351009013,1738283440126,-500.0,0.00016438,2]
[351009015,1738283440136,-500.0,0.00016438,2]
[351009017,1738283440145,-500.0,0.00016438,2]
[351009019,1738283440154,-500.0,0.00016438,2]
[351009021,1738283440164,-500.0,0.00016438,2]
[351009023,1738283440174,-500.0,0.00016438,2]
[351009025,1738283440183,-500.0,0.00016438,2]
[351009027,1738283440192,-500.0,0.00016438,2]
[351009029,1738283440201,-500.0,0.00016438,2]
[351009031,1738283440211,-500.0,0.00016438,2]
[351009033,1738283440223,-500.0,0.00016438,2]
[351009035,1738283440232,-500.0,0.00016438,2]
[351009037,1738283440242,-500.0,0.00016438,2]
[351009039,1738283440251,-500.0,0.00016438,2]
[351009041,1738283440260,-500.0,0.00016438,2]
[351009043,1738283440270,-500.0,0.00016438,2]